[Event "ROU-ch Men 2018"]
[Site "Olanesti"]
[Date "2018.05.14"]
[Round "1"]
[White "Manea, Alexandru"]
[Black "Farcadi, Hunor"]
[Result "1-0"]
[ECO "B23"]
[WhiteElo "2402"]
[BlackElo "1959"]
[Annotator "ChessBase"]
[PlyCount "73"]
[EventDate "2018.??.??"]
[EventType "swiss"]
[EventCountry "ROU"]
[SourceTitle "playchess.com"]
[Source "ChessBase"]
[SourceQuality "1"]
[TimeControl "40/5400+30:1800+30"]

1. e4 {[%emt 0:00:28]} c5 {[%emt 0:00:53]} 2. Nc3 {[%emt 0:03:21]} Nc6 {[%emt 0:00:16]} 3. Nge2 {[%emt 0:00:07]} Nf6 {[%emt 0:01:34]} 4. f4 {[%emt 0:01:39]} d6 {[%emt 0:06:43]} 5. g3 {[%emt 0:02:57]} g6 {[%emt 0:04:21]} 6. Bg2 {[%emt 0:00:16]} Bg7 {[%emt 0:00:08]} 7. h3 {[%emt 0:00:11]} Bd7 {[%emt 0:03:30]} 8. d3 {[%emt 0:00:20]} Rb8 {[%emt 0:03:50]} 9. g4 {[%emt 0:00:47]} h6 {[%emt 0:18:43]} 10. Be3 {[%emt 0:02:41]} b5 {[%emt 0:07:52]} 11. Qd2 {[%emt 0:01:18]} e5 {[%emt 0:04:15]} 12. f5 {[%emt 0:00:44]} Nd4 {[%emt 0:02:51]} 13. Ng3 {[%emt 0:00:38]} Qa5 {[%emt 0:03:32]} 14. O-O {[%emt 0:05:12]} g5 {[%emt 0:02:44]} 15. a3 {[%emt 0:03:47]} Qc7 {[%emt 0:07:53]} 16. Nd5 {[%emt 0:01:33]} Nxd5 {[%emt 0:02:44]} 17. exd5 {[%emt 0:00:11]} f6 {[%emt 0:01:07]} 18. b4 {[%emt 0:01:17]} Rc8 {[%emt 0:03:55]} 19. Ra2 {[%emt 0:01:33]} Kf7 {[%emt 0:03:45]} 20. Ne4 {[%emt 0:10:39]} Bf8 {[%emt 0:05:24]} 21. Rb1 {[%emt 0:01:49]} c4 {[%emt 0:02:04]} 22. dxc4 {[%emt 0:01:26]} Qxc4 {[%emt 0:01:45]} 23. c3 {[%emt 0:00:11]} Nxf5 {[%emt 0:01:03]} 24. gxf5 {[%emt 0:00:13]} Bxf5 {[%emt 0:00:05]} 25. Qc2 {[%emt 0:01:36]} Bg6 {[%emt 0:00:44]} 26. Rf1 {[%emt 0:00:09]} f5 {[%emt 0:03:55]} 27. a4 {[%emt 0:06:10]} Kg7 {[%emt 0:05:55]} 28. Nd2 {[%emt 0:02:03]} Qe2 {[%emt 0:02:06]} 29. Bxa7 {[%emt 0:01:02]} bxa4 {[%emt 0:00:47]} 30. Qxa4 {[%emt 0:00:48]} Be7 {[%emt 0:00:28]} 31. Ne4 {[%emt 0:04:23]} Qc4 {[%emt 0:00:32]} 32. Nxd6 {[%emt 0:00:48]} Bxd6 {[%emt 0:00:11]} 33. Qd7+ {[%emt 0:00:07]} Bf7 {[%emt 0:00:54]} 34. Rxf5 {[%emt 0:01:29]} Rhf8 {[%emt 0:00:23]} 35. Raf2 {[%emt 0:00:06]} Rc7 {[%emt 0:00:36]} 36. Rxf7+ {[%emt 0:00:25]} Rxf7 {[%emt 0:00:05]} 37. Rxf7+ {[%emt 0:00:04]} 1-0

[Event "ROU-ch Men 2018"]
[Site "Olanesti"]
[Date "2018.05.14"]
[Round "1"]
[White "Stanciu, Alexandru-Ovidiu"]
[Black "Tufa, Mihai"]
[Result "1-0"]
[ECO "A20"]
[WhiteElo "2363"]
[BlackElo "1915"]
[Annotator "ChessBase"]
[PlyCount "47"]
[EventDate "2018.??.??"]
[EventType "swiss"]
[EventCountry "ROU"]
[SourceTitle "playchess.com"]
[Source "ChessBase"]
[SourceQuality "1"]
[TimeControl "40/5400+30:1800+30"]

1. c4 {[%emt 0:00:00]} e5 {[%emt 0:00:36]} 2. g3 {[%emt 0:00:00]} Nf6 {[%emt 0:02:30]} 3. Bg2 {[%emt 0:00:03]} d5 {[%emt 0:05:24]} 4. cxd5 {[%emt 0:00:52]} Nxd5 {[%emt 0:00:15]} 5. Nc3 {[%emt 0:00:04]} c6 {[%emt 0:06:52]} 6. Nf3 {[%emt 0:00:33]} f6 {[%emt 0:04:00]} 7. O-O {[%emt 0:00:15]} Be6 {[%emt 0:03:10]} 8. d4 {[%emt 0:18:31]} exd4 {[%emt 0:09:29]} 9. Nxd4 {[%emt 0:01:48]} Bf7 {[%emt 0:07:56]} 10. e4 {[%emt 0:05:16]} Nc7 {[%emt 0:07:46]} 11. Bf4 {[%emt 0:05:39]} Ne6 {[%emt 0:09:16]} 12. Nxe6 {[%emt 0:01:04]} Bxe6 {[%emt 0:00:18]} 13. Qe2 {[%emt 0:00:37]} Be7 {[%emt 0:04:53]} 14. Rfd1 {[%emt 0:01:21]} Qc8 {[%emt 0:01:08]} 15. Nd5 {[%emt 0:12:56]} Bd8 {[%emt 0:09:16]} 16. Bd6 {[%emt 0:01:07]} Kf7 {[%emt 0:00:18]} 17. Nf4 {[%emt 0:00:14]} Be7 {[%emt 0:07:02]} 18. e5 {[%emt 0:01:45]} f5 {[%emt 0:03:33]} 19. Bxe7 {[%emt 0:01:28]} Kxe7 {[%emt 0:00:22]} 20. Rd6 {[%emt 0:01:40]} Bf7 {[%emt 0:01:33]} 21. Rad1 {[%emt 0:00:16]} Bxa2 {[%emt 0:03:41]} 22. Qh5 {[%emt 0:01:19]} Bd5 {[%emt 0:06:11]} 23. Qg5+ {[%emt 0:01:18]} Kf7 {[%emt 0:00:34]} 24. Nxd5 {[%emt 0:02:05]} 1-0

[Event "ROU-ch Men 2018"]
[Site "Olanesti"]
[Date "2018.05.14"]
[Round "1"]
[White "Vasiesiu, Victor"]
[Black "Muller, Wilhelm"]
[Result "1-0"]
[ECO "B00"]
[WhiteElo "2327"]
[BlackElo "1896"]
[Annotator "NA"]
[PlyCount "61"]
[EventDate "2018.??.??"]
[EventType "swiss"]
[EventCountry "ROU"]
[SourceTitle "playchess.com"]
[Source "ChessBase"]
[SourceQuality "1"]
[TimeControl "40/5400+30:1800+30"]

{[%evp 11,54,31,32767,32767,39,26,49,51,50,64,85,115,150,150,152,143,147,133,212,213,210,215,230,238,283,283,412,437,425,463,583,637,32767,32767,32767,32767,32767,32767,32767,302,32767,32767,1513,29981,29989]} 1. e4 {[%emt 0:00:00]} d6 {[%emt 0:00:17]} 2. d4 {[%emt 0:00:00]} Nd7 {[%emt 0:00:13]} 3. Nc3 {[%emt 0:00:12]} g6 {[%emt 0:00:25]} 4. f4 {[%emt 0:00:09]} Bg7 {[%emt 0:00:23]} 5. Nf3 {[%emt 0:00:08]} e6 {[%emt 0:00:50]} 6. Bd3 {[%emt 0:00:44] B06: Modern Defence} Ne7 {[%emt 0:00:45]} 7. O-O {[%emt 0:00:18]} (7. Be3 b6 8. O-O O-O 9. Qd2 c5 10. Nb5 d5 11. e5 Ba6 12. Nd6 Bxd3 13. cxd3 Nc8 14. Nb5 {0-1 (43) Zwirs,N (2395)-Ghasi,A (2455) chess.com INT 2017}) 7... O-O {LiveBook: 5 Games} 8. Ne2 d5 {[%emt 0:06:45]} 9. e5 {[%emt 0:00:58]} c5 {[%emt 0:02:30]} 10. c3 {[%emt 0:00:07]} Nf5 $146 {[%emt 0:06:17]} ({Predecessor:} 10... Nc6 11. Be3 c4 {1-0 (25) Recky,N (1939)-Krivos Bellus,J (1886) Slovakia 2008}) 11. g4 {[%emt 0:03:33]} Nh6 {[%emt 0:02:41]} 12. h3 {[%emt 0:00:26]} Kh8 {[%emt 0:10:08]} 13. Ng3 {[%emt 0:00:22]} cxd4 {[%emt 0:05:40]} 14. cxd4 {[%emt 0:00:07]} Nb6 {[%emt 0:04:16]} (14... Nb8 $16 {might work better.} 15. b3 Nc6) 15. b3 {[%emt 0:02:31]} Bd7 {[%emt 0:01:08]} 16. Be3 {[%emt 0:00:36]} Nc8 {[%emt 0:02:34] [#]} 17. Qd2 $1 {[%emt 0:00:16]} Ne7 {[%emt 0:02:30]} 18. f5 $1 {[%emt 0:00:10]} exf5 {[%emt 0:00:05]} (18... Nhxf5 {was necessary.} 19. gxf5 exf5) 19. Bxh6 {[%emt 0:00:12]} fxg4 {[%emt 0:00:06]} 20. hxg4 {[%emt 0:03:10]} Bxg4 {[%emt 0:00:51]} 21. Bxg7+ {[%emt 0:00:23]} Kxg7 {[%emt 0:00:03]} 22. Qg5 {[%emt 0:00:09]} Bxf3 {[%emt 0:00:26]} 23. Qf6+ {[%emt 0:00:11]} Kg8 {[%emt 0:00:14]} 24. Rxf3 {[%emt 0:00:09]} Nc6 {[%emt 0:02:53]} 25. Qf4 {[%emt 0:02:37]} Kh8 {[%emt 0:02:36]} 26. Kg2 {[%emt 0:03:34]} Rc8 $2 {[%emt 0:05:22]} (26... Rg8 27. Raf1 Rg7) 27. Rh1 {[%emt 0:00:59]} Rc7 {[%emt 0:00:49]} 28. Bxg6 {[%emt 0:00:10]} fxg6 {[%emt 0:01:07]} 29. Qxf8+ {[%emt 0:00:06]} Qxf8 {[%emt 0:00:05]} 30. Rxf8+ {[%emt 0:00:08]} Kg7 {[%emt 0:00:41]} 31. Rf4 {[%emt 0:00:28]} 1-0

[Event "ROU-ch Men 2018"]
[Site "Olanesti"]
[Date "2018.05.14"]
[Round "1"]
[White "Ileana, George"]
[Black "Dinca, Ovidiu"]
[Result "1/2-1/2"]
[ECO "C42"]
[WhiteElo "2325"]
[BlackElo "1863"]
[Annotator "ChessBase"]
[PlyCount "112"]
[EventDate "2018.??.??"]
[EventType "swiss"]
[EventCountry "ROU"]
[SourceTitle "playchess.com"]
[Source "ChessBase"]
[SourceQuality "1"]
[TimeControl "40/5400+30:1800+30"]

1. e4 {[%emt 0:00:00]} e5 {[%emt 0:00:05]} 2. Nf3 {[%emt 0:00:00]} Nf6 {[%emt 0:00:04]} 3. Nxe5 {[%emt 0:00:00]} d6 {[%emt 0:00:11]} 4. Nf3 {[%emt 0:00:00]} Nxe4 {[%emt 0:00:09]} 5. Nc3 {[%emt 0:00:00]} Nxc3 {[%emt 0:00:04]} 6. dxc3 {[%emt 0:00:00]} Be7 {[%emt 0:00:10]} 7. Be3 {[%emt 0:00:00]} Nc6 {[%emt 0:00:09]} 8. Qd2 {[%emt 0:00:05]} Be6 {[%emt 0:05:19]} 9. O-O-O {[%emt 0:02:49]} Qd7 {[%emt 0:00:50]} 10. Kb1 {[%emt 0:00:06]} a6 {[%emt 0:08:36]} 11. h3 {[%emt 0:00:44]} Ne5 {[%emt 0:10:22]} 12. Ng5 {[%emt 0:04:20]} Bxg5 {[%emt 0:05:23]} 13. Bxg5 {[%emt 0:00:07]} f6 {[%emt 0:00:11]} 14. Be3 {[%emt 0:00:12]} Nc4 {[%emt 0:01:27]} 15. Bxc4 {[%emt 0:00:38]} Bxc4 {[%emt 0:00:03]} 16. g4 {[%emt 0:00:24]} Qf7 {[%emt 0:07:56]} 17. a3 {[%emt 0:00:33]} O-O-O {[%emt 0:01:49]} 18. Rhg1 {[%emt 0:04:29]} h6 {[%emt 0:00:48]} 19. h4 {[%emt 0:01:13]} g5 {[%emt 0:03:49]} 20. hxg5 {[%emt 0:05:24]} fxg5 {[%emt 0:00:14]} 21. b3 {[%emt 0:00:56]} Bb5 {[%emt 0:00:40]} 22. c4 {[%emt 0:00:32]} Bc6 {[%emt 0:00:05]} 23. Qd4 {[%emt 0:00:44]} Rhe8 {[%emt 0:00:53]} 24. Qa7 {[%emt 0:01:46]} Be4 {[%emt 0:00:44]} 25. Kb2 {[%emt 0:01:48]} c5 {[%emt 0:01:36]} 26. Qb6 {[%emt 0:00:52]} Qc7 {[%emt 0:00:20]} 27. Qxc7+ {[%emt 0:00:27]} Kxc7 {[%emt 0:00:09]} 28. Rg3 {[%emt 0:00:04]} Re6 {[%emt 0:01:35]} 29. b4 {[%emt 0:04:20]} b6 {[%emt 0:00:29]} 30. Rh3 {[%emt 0:04:48]} Rf8 {[%emt 0:00:22]} 31. Kc3 {[%emt 0:12:12]} Rff6 {[%emt 0:02:31]} 32. Rg3 {[%emt 0:09:29]} Rf3 {[%emt 0:03:28]} 33. Rdg1 {[%emt 0:00:44]} Ref6 {[%emt 0:02:00]} 34. Kd2 {[%emt 0:00:33]} Rxg3 {[%emt 0:03:16]} 35. Rxg3 {[%emt 0:00:04]} Rf3 {[%emt 0:00:26]} 36. Rg1 {[%emt 0:03:23]} Rf6 {[%emt 0:00:13]} 37. c3 {[%emt 0:01:15]} Bf3 {[%emt 0:03:25]} 38. Rg3 {[%emt 0:01:32]} Kd7 {[%emt 0:04:28]} 39. Kd3 {[%emt 0:00:09]} Bc6 {[%emt 0:02:02]} 40. Ke2 {[%emt 0:00:00]} Bb7 {[%emt 0:01:34]} 41. Bd2 {[%emt 0:07:28]} Kc7 {[%emt 0:01:03]} 42. Rd3 {[%emt 0:01:56]} Bc8 {[%emt 0:01:46]} 43. f3 {[%emt 0:00:49]} Be6 {[%emt 0:00:24]} 44. Re3 {[%emt 0:00:27]} Bxc4+ {[%emt 0:00:08]} 45. Kf2 {[%emt 0:00:03]} Be6 {[%emt 0:02:00]} 46. Kg3 {[%emt 0:00:08]} d5 {[%emt 0:01:27]} 47. Re1 {[%emt 0:01:52]} Kc6 {[%emt 0:00:24]} 48. bxc5 {[%emt 0:00:46]} bxc5 {[%emt 0:00:12]} 49. Rb1 {[%emt 0:01:11]} d4 {[%emt 0:04:50]} 50. cxd4 {[%emt 0:00:12]} Bd5 {[%emt 0:00:19]} 51. f4 {[%emt 0:00:36]} gxf4+ {[%emt 0:00:14]} 52. Bxf4 {[%emt 0:00:04]} cxd4 {[%emt 0:00:34]} 53. Rb2 {[%emt 0:01:31]} Rg6 {[%emt 0:06:57]} 54. Rh2 {[%emt 0:00:49]} Be6 {[%emt 0:00:21]} 55. Rxh6 {[%emt 0:04:48]} Rxh6 {[%emt 0:00:15]} 56. Bxh6 {[%emt 0:00:03]} Bxg4 {[%emt 0:00:18]} 1/2-1/2

[Event "ROU-ch Men 2018"]
[Site "Olanesti"]
[Date "2018.05.14"]
[Round "1"]
[White "Pop, Alexandru"]
[Black "Stan, Andrei-Mihaita"]
[Result "1-0"]
[ECO "A46"]
[WhiteElo "2302"]
[BlackElo "1860"]
[Annotator "ChessBase"]
[PlyCount "99"]
[EventDate "2018.??.??"]
[EventType "swiss"]
[EventCountry "ROU"]
[SourceTitle "playchess.com"]
[Source "ChessBase"]
[SourceQuality "1"]
[TimeControl "40/5400+30:1800+30"]

1. d4 {[%emt 0:00:00]} Nf6 {[%emt 0:00:34]} 2. Nf3 {[%emt 0:00:00]} e6 {[%emt 0:00:37]} 3. Bf4 {[%emt 0:00:00]} c5 {[%emt 0:03:45]} 4. e3 {[%emt 0:00:05]} b6 {[%emt 0:01:03]} 5. Nc3 {[%emt 0:00:10]} cxd4 {[%emt 0:01:24]} 6. Nb5 {[%emt 0:03:02]} d6 {[%emt 0:08:20]} 7. Qxd4 {[%emt 0:00:09]} Nd5 {[%emt 0:02:10]} 8. O-O-O {[%emt 0:07:30]} Nc6 {[%emt 0:02:54]} 9. Qa4 {[%emt 0:07:06]} Bb7 {[%emt 0:02:58]} 10. Nbd4 {[%emt 0:28:25]} Qd7 {[%emt 0:09:14]} 11. Bb5 {[%emt 0:00:12]} Rc8 {[%emt 0:01:28]} 12. Bg3 {[%emt 0:09:23]} a6 {[%emt 0:06:38]} 13. Bxa6 {[%emt 0:06:00]} Bxa6 {[%emt 0:00:51]} 14. Qxa6 {[%emt 0:00:10]} Ncb4 {[%emt 0:01:58]} 15. Qb5 {[%emt 0:01:43]} Nxa2+ {[%emt 0:05:25]} 16. Kd2 {[%emt 0:00:06]} Nab4 {[%emt 0:00:57]} 17. c3 {[%emt 0:02:26]} Nc6 {[%emt 0:00:34]} 18. Nxc6 {[%emt 0:03:52]} Rxc6 {[%emt 0:04:40]} 19. Ra1 {[%emt 0:01:39]} Rc8 {[%emt 0:00:34]} 20. Nd4 {[%emt 0:01:19]} Be7 {[%emt 0:02:21]} 21. Ra7 {[%emt 0:00:57]} Qxb5 {[%emt 0:04:40]} 22. Nxb5 {[%emt 0:00:06]} e5 {[%emt 0:01:25]} 23. Ke2 {[%emt 0:01:04]} Rd8 {[%emt 0:05:59]} 24. Rd1 {[%emt 0:01:25]} Nf6 {[%emt 0:00:23]} 25. Rb7 {[%emt 0:01:32]} h5 {[%emt 0:05:02]} 26. Bh4 {[%emt 0:01:28]} Rd7 {[%emt 0:08:02]} 27. Rb8+ {[%emt 0:00:50]} Rd8 {[%emt 0:02:59]} 28. Rxd8+ {[%emt 0:00:13]} Kxd8 {[%emt 0:02:20]} 29. Bxf6 {[%emt 0:00:13]} gxf6 {[%emt 0:00:47]} 30. Nxd6 {[%emt 0:00:15]} Kc7 {[%emt 0:00:08]} 31. Nf5 {[%emt 0:00:31]} Re8 {[%emt 0:00:44]} 32. Ra1 {[%emt 0:01:05]} Kb7 {[%emt 0:00:27]} 33. Ra4 {[%emt 0:00:24]} Bf8 {[%emt 0:04:07]} 34. Rh4 {[%emt 0:00:34]} Ra8 {[%emt 0:00:23]} 35. Rxh5 {[%emt 0:00:05]} Ra2 {[%emt 0:00:21]} 36. Rh7 {[%emt 0:00:09]} Rxb2+ {[%emt 0:00:36]} 37. Kf3 {[%emt 0:00:08]} Kc6 {[%emt 0:00:28]} 38. Rxf7 {[%emt 0:01:00]} Bc5 {[%emt 0:00:11]} 39. Rxf6+ {[%emt 0:03:18]} Kd5 {[%emt 0:00:06]} 40. Ng3 {[%emt 0:00:00]} Be7 {[%emt 0:00:57]} 41. Rh6 {[%emt 0:01:27]} b5 {[%emt 0:01:00]} 42. Ne4 {[%emt 0:02:13]} b4 {[%emt 0:00:28]} 43. cxb4 {[%emt 0:00:35]} Rxb4 {[%emt 0:00:07]} 44. Nf6+ {[%emt 0:02:04]} Bxf6 {[%emt 0:01:09]} 45. Rxf6 {[%emt 0:00:06]} Rh4 {[%emt 0:00:08]} 46. e4+ {[%emt 0:01:01]} Rxe4 {[%emt 0:01:16]} 47. Rd6+ {[%emt 0:00:10]} Kxd6 {[%emt 0:00:03]} 48. Kxe4 {[%emt 0:00:05]} Ke6 {[%emt 0:00:10]} 49. g4 {[%emt 0:00:09]} Kf6 {[%emt 0:00:07]} 50. h4 {[%emt 0:00:06]} 1-0

[Event "ROU-ch Men 2018"]
[Site "Olanesti"]
[Date "2018.05.14"]
[Round "1"]
[White "Vasilescu, Lucian-Mihail"]
[Black "Toma, Mihail"]
[Result "1-0"]
[ECO "A16"]
[WhiteElo "2243"]
[BlackElo "1835"]
[Annotator "NA RC"]
[PlyCount "130"]
[EventDate "2018.??.??"]
[EventType "swiss"]
[EventCountry "ROU"]
[SourceTitle "playchess.com"]
[Source "ChessBase"]
[SourceQuality "1"]
[TimeControl "40/5400+30:1800+30"]

{[%evp 8,120,29,27,37,33,45,38,22,12,11,5,33,12,32,27,49,54,50,37,32767,32767,67,32767,41,27,32767,32767,63,32767,32767,32767,32767,32767,32767,32767,32767,32767,32767,32767,32767,32767,16,9,27,0,21,-12,14,0,32767,32767,29,-103,-102,-97,-106,-114,-111,32767,32767,-29,-20,-49,32767,32767,32767,32767,32767,32767,32767,32767,32767,32767,32767,32767,32767,8,66,87,87,32767,32767,32767,32767,32767,32767,28,32767,32767,45,31,191,157,422,255,970,777,1163,378,1472,32767,32767,1096,1110,32767,32767,32767,32767,92,1417,4241,2362,12844,29978]} 1. c4 {[%emt 0:00:00]} Nf6 {[%emt 0:00:00]} 2. Nc3 {[%emt 0:00:00]} d5 {[%emt 0:01:04]} 3. cxd5 {[%emt 0:01:59]} Nxd5 {[%emt 0:00:42]} 4. d4 {[%emt 0:00:10]} Nxc3 {[%emt 0:01:57]} 5. bxc3 {[%emt 0:00:06]} g6 {[%emt 0:04:30]} 6. Nf3 {[%emt 0:08:43]} Bg7 {[%emt 0:00:08]} 7. e3 {[%emt 0:00:07]} O-O {[%emt 0:00:33]} 8. Be2 {[%emt 0:04:13]} c5 {[%emt 0:04:53]} 9. O-O {[%emt 0:01:25]} Nc6 {[%emt 0:05:05] LiveBook: 12 Games} 10. Rb1 {[%emt 0:03:49] A34: Symmetrical English: 2 Nc3, lines with ...d5} (10. Ba3 cxd4 11. cxd4 Be6 12. Bb2 Bd5 13. a4 Rc8 14. Rc1 Qb6 15. Ba3 Rfd8 16. Rb1 Qc7 17. Bd3 f5 {0-1 (43) Zhang,Z (2619)-Vidit,S (2651) Berlin 2015}) 10... cxd4 {[%emt 0:05:28]} 11. cxd4 {[%emt 0:00:07]} b6 {[%emt 0:02:14]} 12. Ba3 {[%emt 0:08:23]} Bb7 {[%emt 0:01:41]} 13. d5 $146 {[%emt 0:02:23]} ({Predecessor:} 13. Bb5 Na5 14. Qe2 a6 15. Bd3 b5 16. Rfc1 Re8 17. Rd1 {½-½ (58) Gratsianov,I (1906)-Kuzevanova,E (2124) St Petersburg 2005}) 13... Ne5 14. e4 Nxf3+ {[%emt 0:07:38]} 15. Bxf3 {[%emt 0:02:51]} Be5 {[%emt 0:02:59]} 16. Qa4 {[%emt 0:06:53]} Bd6 {[%emt 0:02:09]} 17. Bb2 {[%emt 0:10:22]} Qe8 {[%emt 0:08:39]} 18. Qd4 {[%emt 0:07:04]} f6 {[%emt 0:00:12]} 19. Rfc1 {[%emt 0:00:24]} Qd7 {[%emt 0:02:23]} 20. h3 {[%emt 0:02:52]} h5 {[%emt 0:06:48]} 21. Qe3 {[%emt 0:05:51]} Kg7 {[%emt 0:03:43]} 22. Rc2 {[%emt 0:02:12]} Rac8 {[%emt 0:04:46]} 23. Rbc1 {[%emt 0:00:26]} Rxc2 {[%emt 0:00:28]} 24. Rxc2 {[%emt 0:00:03]} Bc5 {[%emt 0:05:37]} 25. Qd2 {[%emt 0:06:51]} Bd6 {[%emt 0:03:59]} 26. Qg5 {[%emt 0:12:06]} (26. Bxh5 $5 gxh5 27. Qg5+ Kf7 28. Qxh5+ Kg7 29. e5 Bxe5 30. Rc4 Bxb2 31. Rg4+ Qxg4 32. Qxg4+ Kh8 33. Qd7 $16) 26... Rh8 {[%emt 0:02:51]} 27. g4 {[%emt 0:01:40]} Kf7 {[%emt 0:01:18]} 28. Qe3 {[%emt 0:01:10]} Bc5 {[%emt 0:11:40]} 29. Qb3 {[%emt 0:00:10]} Qd6 {[%emt 0:01:11]} 30. Re2 {[%emt 0:02:03]} (30. e5 $11 {keeps the balance.} fxe5 31. Re2 (31. Rxc5 bxc5 32. Qe3 hxg4 $17)) 30... Qg3+ {[%emt 0:02:28]} 31. Bg2 {[%emt 0:01:20]} Qxb3 {[%emt 0:00:13]} 32. axb3 {[%emt 0:00:02]} hxg4 {[%emt 0:00:24]} 33. hxg4 {[%emt 0:00:05]} Bd6 {[%emt 0:01:09]} 34. Bf3 {[%emt 0:02:50]} Rc8 {[%emt 0:01:46]} 35. Kg2 {[%emt 0:02:44]} Ba6 {[%emt 0:00:13]} 36. Re1 {[%emt 0:01:15]} Rc2 {[%emt 0:00:14]} 37. Bd4 {[%emt 0:00:01]} Bc5 {[%emt 0:01:15]} 38. Bxc5 {[%emt 0:00:56]} bxc5 {[%emt 0:00:00]} 39. Ra1 {[%emt 0:00:26]} Be2 {[%emt 0:00:25]} 40. Rxa7 {[%emt 0:00:00]} Bxf3+ {[%emt 0:00:02]} 41. Kxf3 Rc3+ {[%emt 0:00:03]} 42. Ke2 {[%emt 0:01:27]} Ke8 {[%emt 0:00:54]} 43. Rb7 {[%emt 0:00:39]} Rc2+ {[%emt 0:00:14]} 44. Ke3 {[%emt 0:00:37]} Rc3+ {[%emt 0:00:05]} 45. Kd2 {[%emt 0:00:40]} Rf3 {[%emt 0:00:03]} 46. Ke2 {[%emt 0:00:09]} Rc3 {[%emt 0:00:01]} 47. g5 {[%emt 0:05:43]} fxg5 {[%emt 0:00:51]} 48. e5 {[%emt 0:01:52]} Kd8 {[%emt 0:02:53]} 49. Rb6 {[%emt 0:04:37]} g4 $2 {[%emt 0:01:06]} (49... Ke8 $1 $11 {and Black has nothing to worry.}) 50. Rxg6 {[%emt 0:00:51]} Rxb3 $2 {[%emt 0:00:11]} (50... c4 $16) 51. Rxg4 {[%emt 0:00:07]} Rc3 $2 {[%emt 0:01:31]} (51... Kd7 52. Ra4 Rb7) 52. Rg8+ {[%emt 0:04:39]} Kd7 {[%emt 0:00:14]} 53. Rg7 {[%emt 0:00:07]} Ke8 {[%emt 0:00:25]} (53... Rc4 $142 54. f3 Ke8) 54. f4 {[%emt 0:01:03]} Rc4 {[%emt 0:00:33]} 55. e6 {[%emt 0:03:28]} Kf8 {[%emt 0:00:51]} 56. Rf7+ {[%emt 0:00:13]} Ke8 {[%emt 0:00:02]} 57. Rh7 {[%emt 0:01:04]} Kf8 {[%emt 0:01:02]} 58. Rh8+ {[%emt 0:01:58]} Kg7 {[%emt 0:00:02]} 59. Re8 {[%emt 0:00:09]} Rxf4 {[%emt 0:00:34]} 60. Rxe7+ {[%emt 0:00:11]} Kg8 {[%emt 0:00:25]} 61. Ke3 {[%emt 0:02:27]} Rd4 {[%emt 0:00:43]} 62. Rd7 {[%emt 0:00:06]} Kf8 {[%emt 0:00:27]} 63. d6 {[%emt 0:02:03]} Rd1 {[%emt 0:01:05]} 64. Rd8+ {[%emt 0:00:40]} Kg7 {[%emt 0:00:02]} 65. e7 {[%emt 0:00:14]} Re1+ {Ke4} 1-0

[Event "ROU-ch Men 2018"]
[Site "Olanesti"]
[Date "2018.05.14"]
[Round "1"]
[White "Craciun, Ovidiu"]
[Black "Dobre, Claudiu-Cristian"]
[Result "0-1"]
[ECO "B00"]
[WhiteElo "1931"]
[BlackElo "2393"]
[Annotator "ChessBase"]
[PlyCount "49"]
[EventDate "2018.??.??"]
[EventType "swiss"]
[EventCountry "ROU"]
[SourceTitle "playchess.com"]
[Source "ChessBase"]
[SourceQuality "1"]
[TimeControl "40/5400+30:1800+30"]

1. e4 {[%emt 0:00:00]} Nc6 {[%emt 0:00:30]} 2. Nf3 {[%emt 0:01:57]} d6 {[%emt 0:00:10]} 3. d4 {[%emt 0:00:58]} Nf6 {[%emt 0:00:08]} 4. Nc3 {[%emt 0:00:19]} Bg4 {[%emt 0:00:13]} 5. Be3 {[%emt 0:00:24]} e6 {[%emt 0:00:11]} 6. Be2 {[%emt 0:09:23]} d5 {[%emt 0:00:13]} 7. e5 {[%emt 0:11:55]} Nd7 {[%emt 0:00:24]} 8. h3 {[%emt 0:09:11]} Bh5 {[%emt 0:01:35]} 9. Ng5 {[%emt 0:07:46]} Bxe2 {[%emt 0:04:36]} 10. Qxe2 {[%emt 0:00:37]} Nxd4 {[%emt 0:13:31]} 11. Bxd4 {[%emt 0:21:11]} Qxg5 {[%emt 0:00:15]} 12. O-O {[%emt 0:05:41]} c6 {[%emt 0:14:39]} 13. f4 {[%emt 0:01:52]} Qg6 {[%emt 0:01:52]} 14. Qf2 {[%emt 0:06:27]} Be7 {[%emt 0:07:19]} 15. Kh2 {[%emt 0:04:19]} h5 {[%emt 0:11:54]} 16. Bxa7 {[%emt 0:02:54]} Qf5 {[%emt 0:05:06]} 17. Bd4 {[%emt 0:04:05]} g5 {[%emt 0:22:40]} 18. fxg5 {[%emt 0:00:43]} Qxf2 {[%emt 0:00:22]} 19. Rxf2 {[%emt 0:00:13]} Bxg5 {[%emt 0:01:43]} 20. b4 {[%emt 0:02:17]} Rg8 {[%emt 0:07:23]} 21. a4 {[%emt 0:02:59]} f6 {[%emt 0:00:59]} 22. exf6 {[%emt 0:00:37]} Kf7 {[%emt 0:00:13]} 23. Re2 {[%emt 0:02:21]} e5 {[%emt 0:01:16]} 24. Bxe5 {[%emt 0:00:35]} Nxe5 {[%emt 0:00:37]} 25. Rxe5 0-1